fUSD/lending_fUSD_20250127
["ID","MTS","AMOUNT","RATE_DAILY","PERIOD"]
[350557989,1737961848335,-655.74,0.00011999,2]
[350557991,1737961848346,-500.0,0.00011999,2]
[350557993,1737961848356,-537.93998662,0.00011999,2]
[350557995,1737961848366,-698.29,0.00011999,2]
[350557997,1737961848376,-500.0,0.00011999,2]
[350557999,1737961848386,-698.29,0.00011999,2]
[350558001,1737961848395,-500.0,0.00011999,2]
[350558003,1737961848405,-698.29,0.00011999,2]
[350558005,1737961848414,-500.0,0.00011999,2]
[350558007,1737961848425,-572.91326089,0.00011999,2]
[350558009,1737961848435,-698.29,0.00011999,2]
[350558011,1737961848445,-500.0,0.00011999,2]
[350558013,1737961848454,-698.29,0.00011999,2]
[350558015,1737961848464,-500.0,0.00011999,2]
[350558017,1737961848474,-698.29,0.00011999,2]
[350558018,1737961848483,-500.0,0.00011999,2]
[350558019,1737961848492,-698.29,0.00011999,2]
[350558020,1737961848502,-500.0,0.00011999,2]
[350558021,1737961848512,-698.29,0.00011999,2]
[350558022,1737961848521,-500.0,0.00011999,2]
[350558023,1737961848531,-698.29,0.00011999,2]
[350558024,1737961848543,-500.0,0.00011999,2]
[350558025,1737961848553,-698.29,0.00011999,2]
[350558027,1737961848563,-698.29,0.00011999,2]
[350558029,1737961848573,-500.0,0.00011999,2]
[350558030,1737961848583,-698.29,0.00011999,2]
[350558032,1737961848596,-500.0,0.00011999,2]
[350558035,1737961848608,-500.0,0.00011999,2]
[350558037,1737961848618,-500.0,0.00011999,2]
[350558039,1737961848627,-500.0,0.00011999,2]
[350558040,1737961848638,-1074.83,0.00011999,2]
[350558042,1737961848647,-500.0,0.00011999,2]
[350558044,1737961848656,-1074.83,0.00011999,2]
[350558046,1737961848666,-271.74542968,0.00011999,2]
[350558048,1737961848676,-500.0,0.00011999,2]
[350558050,1737961848685,-1074.83,0.00011999,2]
[350558052,1737961848695,-312.97774806,0.00011999,2]
[350558054,1737961848704,-1074.83,0.00011999,2]
[350558056,1737961848713,-1074.83,0.00011999,2]
[350558058,1737961848723,-1074.83,0.00011999,2]
[350558060,1737961848732,-1074.83,0.00011999,2]
[350558062,1737961848742,-1074.83,0.00011999,2]
[350558064,1737961848751,-1074.83,0.00011999,2]
[350558066,1737961848761,-1074.83,0.00011999,2]
[350558068,1737961848770,-1074.83,0.00011999,2]
[350558070,1737961848780,-1074.83,0.00011999,2]
[350558072,1737961848789,-500.0,0.00011999,2]
[350558074,1737961848798,-500.0,0.00011999,2]
[350558076,1737961848808,-500.0,0.00011999,2]
[350558078,1737961848817,-270.57806768,0.00011999,2]
[350558080,1737961848827,-500.0,0.00011999,2]
[350558082,1737961848837,-500.0,0.00011999,2]
[350558084,1737961848847,-500.0,0.00011999,2]
[350558086,1737961848857,-500.0,0.00011999,2]
[350558088,1737961848866,-291.90712648,0.00011999,2]
[350558090,1737961848876,-500.0,0.00011999,2]
[350558092,1737961848886,-500.0,0.00011999,2]
[350558094,1737961848896,-500.0,0.00011999,2]
[350558096,1737961848905,-500.0,0.00011999,2]
[350558098,1737961848915,-500.0,0.00011999,2]
[350558100,1737961848924,-500.0,0.00011999,2]
[350558102,1737961848934,-500.0,0.00011999,2]
[350558104,1737961848943,-579.10998827,0.00011999,2]
[350558106,1737961848952,-500.0,0.00011999,2]
[350558108,1737961848962,-500.0,0.00011999,2]
[350558110,1737961848972,-264.03775404,0.00011999,2]
[350558112,1737961848982,-500.0,0.00011999,2]
[350558114,1737961848992,-174.83608348,0.00011999,2]
[350558116,1737961849001,-500.0,0.00011999,2]
[350558118,1737961849011,-520.22,0.00011999,2]
[350558120,1737961849021,-500.0,0.00011999,2]
[350558122,1737961849031,-520.22,0.00011999,2]
[350558125,1737961849043,-500.0,0.00011999,2]
[350558127,1737961849052,-520.22,0.00011999,2]
[350558129,1737961849061,-500.0,0.00011999,2]
[350558131,1737961849071,-520.22,0.00011999,2]
[350558133,1737961849080,-500.0,0.00011999,2]
[350558135,1737961849091,-500.0,0.00011999,2]
[350558137,1737961849100,-500.0,0.00011999,2]
[350558139,1737961849110,-500.0,0.00011999,2]
[350558141,1737961849119,-500.0,0.00011999,2]
[350558142,1737961849128,-500.0,0.00011999,2]
[350558144,1737961849137,-520.22,0.00011999,2]
[350558146,1737961849147,-500.0,0.00011999,2]
[350558148,1737961849156,-520.22,0.00011999,2]
[350558150,1737961849166,-500.0,0.00011999,2]
[350558152,1737961849176,-500.0,0.00011999,2]
[350558154,1737961849186,-520.22,0.00011999,2]
[350558156,1737961849195,-500.0,0.00011999,2]
[350558158,1737961849205,-500.0,0.00011999,2]
[350558160,1737961849214,-500.0,0.00011999,2]
[350558162,1737961849224,-520.22,0.00011999,2]
[350558164,1737961849234,-500.0,0.00011999,2]
[350558166,1737961849243,-520.22,0.00011999,2]
[350558168,1737961849253,-500.0,0.00011999,2]
[350558170,1737961849263,-520.22,0.00011999,2]
[350558172,1737961849272,-500.0,0.00011999,2]
[350558174,1737961849283,-520.22,0.00011999,2]
[350558176,1737961849292,-500.0,0.00011999,2]
[350558178,1737961849302,-520.22,0.00011999,2]
[350558180,1737961849311,-501.83650727,0.00011999,2]
[350558182,1737961849321,-500.0,0.00011999,2]
[350558184,1737961849330,-500.0,0.00011999,2]
[350558187,1737961849341,-500.0,0.00011999,2]
[350558188,1737961849351,-500.0,0.00011999,2]
[350558190,1737961849360,-500.0,0.00011999,2]
[350558193,1737961849370,-500.0,0.00011999,2]
[350558195,1737961849381,-500.0,0.00011999,2]
[350558197,1737961849390,-500.0,0.00011999,2]
[350558199,1737961849400,-191.626984,0.00011999,2]
[350558201,1737961849410,-500.0,0.00011999,2]
[350558203,1737961849420,-500.0,0.00011999,2]
[350558205,1737961849430,-500.0,0.00011999,2]
[350558207,1737961849440,-500.0,0.00011999,2]
[350558208,1737961849450,-482.54301851,0.00011999,2]
[350558211,1737961849461,-500.0,0.00011999,2]
[350558213,1737961849471,-500.0,0.00011999,2]
[350558215,1737961849481,-500.0,0.00011999,2]
[350558217,1737961849490,-500.0,0.00011999,2]
[350558219,1737961849499,-500.0,0.00011999,2]
[350558221,1737961849509,-627.5120893,0.00011999,2]
[350558223,1737961849519,-500.0,0.00011999,2]
[350558225,1737961849533,-500.0,0.00011999,2]
[350558226,1737961849543,-152.03167731,0.00011999,2]
[350558229,1737961849552,-426.54912754,0.00011999,2]
[350558231,1737961849562,-500.0,0.00011999,2]
[350558233,1737961849571,-500.0,0.00011999,2]
[350558235,1737961849582,-500.0,0.00011999,2]
[350558236,1737961849594,-500.0,0.00011999,2]
[350558238,1737961849603,-500.0,0.00011999,2]
[350558240,1737961849613,-500.0,0.00011999,2]
[350558242,1737961849624,-500.0,0.00011999,2]
[350558244,1737961849633,-500.0,0.00011999,2]
[350558246,1737961849644,-435.68585331,0.00011999,2]
[350558248,1737961849654,-500.0,0.00011999,2]
[350558249,1737961849663,-500.0,0.00011999,2]
[350558250,1737961849672,-500.0,0.00011999,2]
[350558251,1737961849681,-500.0,0.00011999,2]
[350558252,1737961849690,-500.0,0.00011999,2]
[350558253,1737961849700,-500.0,0.00011999,2]
[350558254,1737961849709,-500.0,0.00011999,2]
[350558255,1737961849718,-500.0,0.00011999,2]
[350558256,1737961849727,-500.0,0.00011999,2]
[350558257,1737961849736,-500.0,0.00011999,2]
[350558258,1737961849746,-500.0,0.00011999,2]
[350558259,1737961849755,-500.0,0.00011999,2]
[350558260,1737961849765,-500.0,0.00011999,2]
[350558261,1737961849774,-205.12843684,0.00011999,2]
[350558262,1737961849784,-1764.0,0.00012,2]
[350558263,1737961849795,-3014182.16568505,0.00012,2]
[350558279,1737961850052,-21912.5853856,0.00012,2]
[350558280,1737961850062,-194.68667539,0.00012,2]
[350558281,1737961850071,-2000.0,0.00012,2]
[350558282,1737961850080,-200.0,0.00012,2]
[350558284,1737961850092,-462.43178967,0.00012,2]
[350558286,1737961850103,-37.56821033,0.00012,2]
[350558288,1737961850112,-697.58544486,0.00012,2]
[350558291,1737961850128,-378.46643972,0.00012,2]
[350558300,1737961850208,-923.94811542,0.00012,2]
[350558302,1737961850217,-73.76094411,0.00012,2]
[350558306,1737961850239,-426.23905589,0.00012,2]
[350558308,1737961850248,-500.0,0.00012,2]
[350558310,1737961850258,-500.0,0.00012,2]
[350558312,1737961850267,-500.0,0.00012,2]
[350558314,1737961850277,-500.0,0.00012,2]
[350558316,1737961850287,-500.0,0.00012,2]
[350558318,1737961850297,-500.0,0.00012,2]
[350558320,1737961850307,-200.0,0.00012,2]
[350558322,1737961850317,-500.0,0.00012,2]
[350558324,1737961850327,-910.0,0.00012,2]
[350558326,1737961850339,-500.0,0.00012,2]
[350558328,1737961850348,-500.0,0.00012,2]
[350558330,1737961850359,-500.0,0.00012,2]
[350558332,1737961850368,-500.0,0.00012,2]
[350558334,1737961850379,-503.0,0.00012,2]
[350558336,1737961850388,-500.0,0.00012,2]
[350558338,1737961850399,-500.0,0.00012,2]
[350558340,1737961850409,-500.0,0.00012,2]
[350558342,1737961850418,-500.0,0.00012,2]
[350558344,1737961850428,-500.0,0.00012,2]
[350558346,1737961850438,-500.0,0.00012,2]
[350558348,1737961850447,-500.0,0.00012,2]
[350558351,1737961850457,-768.0,0.00012,2]
[350558353,1737961850466,-500.0,0.00012,2]
[350558354,1737961850476,-500.0,0.00012,2]
[350558356,1737961850486,-500.0,0.00012,2]
[350558358,1737961850495,-502.0,0.00012,2]
[350558361,1737961850506,-1000.0,0.00012,2]
[350558363,1737961850517,-2000.0,0.00012,2]
[350558365,1737961850527,-200.0,0.00012,2]
[350558367,1737961850537,-500.0,0.00012,2]
[350558369,1737961850549,-500.0,0.00012,2]
[350558371,1737961850558,-500.0,0.00012,2]
[350558373,1737961850568,-500.0,0.00012,2]
[350558375,1737961850579,-500.0,0.00012,2]
[350558377,1737961850590,-250.0,0.00012,2]
[350558379,1737961850601,-319.8,0.00012,2]
[350558381,1737961850611,-500.0,0.00012,2]
[350558383,1737961850623,-500.0,0.00012,2]
[350558385,1737961850633,-500.0,0.00012,2]
[350558387,1737961850643,-500.0,0.00012,2]
[350558389,1737961850653,-500.0,0.00012,2]
[350558391,1737961850663,-500.0,0.00012,2]
[350558393,1737961850672,-500.0,0.00012,2]
[350558395,1737961850682,-500.0,0.00012,2]
[350558397,1737961850691,-500.0,0.00012,2]
[350558399,1737961850701,-500.0,0.00012,2]
[350558401,1737961850711,-500.0,0.00012,2]
[350558403,1737961850720,-500.0,0.00012,2]
[350558405,1737961850730,-500.0,0.00012,2]
[350558407,1737961850740,-500.0,0.00012,2]
[350558409,1737961850750,-500.0,0.00012,2]
[350558411,1737961850759,-500.0,0.00012,2]
[350558413,1737961850769,-500.0,0.00012,2]
[350558415,1737961850779,-500.0,0.00012,2]
[350558417,1737961850789,-500.0,0.00012,2]
[350558419,1737961850799,-500.0,0.00012,2]
[350558421,1737961850809,-500.0,0.00012,2]
[350558423,1737961850819,-349.49463984,0.00012,2]
[350558426,1737961850832,-150.50536016,0.00012,2]
[350558428,1737961850844,-279.70784421,0.00012,2]
[350558430,1737961850857,-220.29215579,0.00012,2]
[350558432,1737961850867,-500.0,0.00012,2]
[350558434,1737961850878,-500.0,0.00012,2]
[350558436,1737961850888,-267.46124794,0.00012,2]
[350558439,1737961850900,-232.53875206,0.00012,2]
[350558441,1737961850910,-500.0,0.00012,2]
[350558443,1737961850919,-500.0,0.00012,2]
[350558445,1737961850929,-500.0,0.00012,2]
[350558447,1737961850938,-500.0,0.00012,2]
[350558449,1737961850948,-500.0,0.00012,2]
[350558451,1737961850957,-328.59088919,0.00012,2]
[350558453,1737961850969,-171.40911081,0.00012,2]
[350558455,1737961850979,-325.6086342,0.00012,2]
[350558457,1737961850990,-174.3913658,0.00012,2]
[350558459,1737961851000,-604.0,0.00012,2]
[350558461,1737961851009,-4.85351734,0.00012054,2]
[350558463,1737961851020,-495.14648266,0.00012054,2]
[350558465,1737961851030,-500.0,0.00012054,2]
[350558467,1737961851039,-859.49,0.00012054,2]
[350558469,1737961851050,-323.80139663,0.00012054,2]
[350558471,1737961851062,-176.19860337,0.00012054,2]
[350558473,1737961851073,-866.33,0.00012054,2]
[350558475,1737961851083,-585.63,0.00012054,2]
[350558477,1737961851094,-655.74,0.00012054,2]
[350558480,1737961851104,-500.0,0.00012054,2]
[350558482,1737961851114,-698.29,0.00012054,2]
[350558484,1737961851123,-500.0,0.00012054,2]
[350558486,1737961851133,-1074.83,0.00012054,2]
[350558488,1737961851142,-520.22,0.00012054,2]
[350558490,1737961851152,-500.0,0.00012054,2]
[350558492,1737961851161,-99.76139663,0.00012055,2]
[350558494,1737961851173,-2774.21635397,0.00012055,2]
[350558496,1737961851184,-748.11940027,0.00012055,2]
[350558517,1737961851373,-5581.30742627,0.00012055,2]
[350558532,1737961851507,-495.495,0.00012055,2]
[350558557,1737961851796,-500.0,0.00011997,2]
[350558559,1737961851806,-2589.79999999,0.00012055,2]
[350558561,1737961851817,-521.15,0.00012055,2]
[350558564,1737961851839,-6119.78042287,0.00012055,2]
[350558566,1737961851849,-1000.0,0.00012105,2]
[350558568,1737961851858,-1058.0,0.00012116,2]
[350558570,1737961851868,-2000.0,0.0001212,2]
[350558572,1737961851877,-200.0,0.0001212,2]
[350558574,1737961851887,-1153.28996769,0.0001212,2]
[350558915,1737962061031,150.0,0.00013698,30]
[350558916,1737962061063,843.62382418,0.00013698,30]
[350558918,1737962249692,-253.73,0.00010971,2]
[350558919,1737962249717,-246.96,0.00010971,2]
[350558920,1737962249739,-245.39,0.00010971,2]
[350558921,1737962249763,-250.4,0.00010971,2]
[350558922,1737962249785,-245.83,0.00010971,2]
[350558923,1737962249807,-251.89,0.00010971,2]
[350558924,1737962249829,-249.13,0.00010971,2]
[350558925,1737962249852,-254.19,0.00010971,2]
[350558926,1737962249872,-500.0,0.00010972,2]
[350558927,1737962249895,-247.55,0.00010972,2]
[350558928,1737962249917,-246.09,0.00010972,2]
[350558929,1737962249940,-245.09,0.00010972,2]
[350558930,1737962249964,-245.17,0.00010972,2]
[350558931,1737962249986,-249.53,0.00010972,2]
[350558932,1737962250008,-253.95,0.00010972,2]
[350558933,1737962250032,-246.97,0.00010972,2]
[350558934,1737962250056,-251.29,0.00010972,2]
[350558935,1737962250079,-248.47,0.00010972,2]
[350558936,1737962250101,-248.25,0.00010972,2]
[350558937,1737962250123,-253.29,0.00010972,2]
[350558938,1737962267253,160.16,0.00010137,2]
[350558946,1737962340783,1239.26,9.376e-05,2]
[350558948,1737962368094,-150.0,0.00011281,2]
[350558949,1737962368118,-332.24,0.00011369,2]
[350558950,1737962368139,-502.8,0.00011439,2]
[350558951,1737962368160,-250.0,0.00011517,2]
[350558952,1737962368181,-1359.53,0.00011589,2]
[350558953,1737962368202,-1239.26,0.00011639,2]
[350558954,1737962368224,-342.23183291,0.00011829,2]
[350558955,1737962368246,-342.23183291,0.00011851,2]
[350558956,1737962368265,-166.0023511,0.00011877,2]
[350558957,1737962368289,-342.23183291,0.00011884,2]
[350558958,1737962368309,-300.0,0.00011897,2]
[350558959,1737962368329,-5000.0,0.00011898,2]
[350558960,1737962368352,-248.9,0.00011898,2]
[350558961,1737962368371,-1697.8283,0.000119,2]
[350558962,1737962368392,-3776.0682,0.000119,2]
[350558963,1737962368412,-157.7006,0.000119,2]
[350558964,1737962368434,-342.23183291,0.00011904,2]
[350558965,1737962368455,-342.23183291,0.00011918,2]
[350558966,1737962368475,-150.0,0.00011995,2]
[350558967,1737962368495,-299.99,0.00011995,2]
[350558968,1737962368516,-500.0,0.00011996,2]
[350558969,1737962368539,-464.67215362,0.00011996,2]
[350558970,1737962368560,-639.61,0.00011996,2]
[350558971,1737962368582,-500.0,0.00011996,2]
[350558972,1737962368604,-500.0,0.00011996,2]
[350558973,1737962368625,-500.0,0.00011996,2]
[350558974,1737962368645,-500.0,0.00011996,2]
[350558975,1737962368667,-500.0,0.00011996,2]
[350558976,1737962368689,-500.0,0.00011996,2]
[350558977,1737962368712,-500.0,0.00011996,2]
[350558978,1737962368735,-500.0,0.00011996,2]
[350558979,1737962368756,-183.90771547,0.00011998,2]
[350558980,1737962368778,-500.0,0.00011998,2]
[350558981,1737962368804,-500.0,0.00011998,2]
[350558982,1737962368827,-500.0,0.00011998,2]
[350558983,1737962368851,-500.0,0.00011998,2]
[350558984,1737962368875,-639.61,0.00011998,2]
[350558985,1737962368900,-639.61,0.00011998,2]
[350558986,1737962368927,-500.0,0.00011998,2]
[350558987,1737962368951,-500.0,0.00011998,2]
[350558988,1737962368975,-500.0,0.00011998,2]
[350558989,1737962368998,-500.0,0.00011998,2]
[350558990,1737962369019,-514.35963297,0.00011998,2]
[350558991,1737962369046,-500.0,0.00011998,2]
[350558992,1737962369068,-500.0,0.00011998,2]
[350558993,1737962369091,-500.0,0.00011998,2]
[350558994,1737962369111,-2173.493,0.00011998,2]
[350558995,1737962369132,-162.769,0.00011998,2]
[350558996,1737962369156,-250.45,0.00011998,2]
[350558997,1737962369177,-500.0,0.00011999,2]
[350558998,1737962369198,-500.0,0.00011999,2]
[350558999,1737962369219,-500.0,0.00011999,2]
[350559000,1737962369241,-165.32,0.00011999,2]
[350559001,1737962369263,-500.0,0.00011999,2]
[350559002,1737962369288,-577.33653656,0.00011999,2]
[350559003,1737962369310,-639.61,0.00011999,2]
[350559004,1737962369332,-639.61,0.00011999,2]
[350559005,1737962369352,-639.61,0.00011999,2]
[350559006,1737962369372,-639.61,0.00011999,2]
[350559007,1737962369393,-639.61,0.00011999,2]
[350559008,1737962369413,-156.00334573,0.00011999,2]
[350559009,1737962481309,416.21892129,9.581e-05,7]
[350559486,1737963032569,-590.215685,9.95e-05,2]
[350559487,1737963032580,-150.0,9.999e-05,2]
[350559488,1737963032593,-115.35531499,0.0001,2]
[350559490,1737963032605,-379.9627007,0.0001,2]
[350559492,1737963032615,-257.2688833,0.0001,2]
[350559494,1737963032626,-427.215,0.0001,2]
[350559496,1737963032637,-1481.25,0.0001,2]
[350559497,1737963032652,-4793.7,0.0001,2]
[350559498,1737963032664,-8827.3,0.0001,2]
[350559499,1737963032697,-1472.14757156,0.0001,2]
[350559500,1737963032709,-947.31015434,0.0001,2]
[350559513,1737963040544,-2254.69999991,0.0001,2]
[350559514,1737963040556,-2950.0,0.0001,2]
[350559515,1737963040568,-865.65795398,0.0001,2]
[350559516,1737963040579,-9218.06021483,0.0001,2]
[350559517,1737963040594,-28957.36466489,0.0001,2]
[350559518,1737963040605,-2841.15576932,0.0001,2]
[350559519,1737963040616,-11722.338021,0.0001,2]
[350559520,1737963040628,-14521.28722034,0.0001,2]
[350559521,1737963040638,-1137.33989964,0.0001,2]
[350559522,1737963040649,-7435.77365235,0.0001,2]
[350559523,1737963040661,-343.84570663,0.0001,2]
[350559524,1737963040673,-367.78854615,0.0001,2]
[350559525,1737963040685,-2845.74923794,0.0001,2]
[350559527,1737963040696,-355.64389394,0.0001,2]
[350559529,1737963040712,-21514.18473886,0.0001,2]
[350559531,1737963040722,-166.66315595,0.0001,2]
[350559533,1737963040731,-2115.54560291,0.000108,2]
[350559534,1737963040744,-656.48687042,0.000108,2]
[350559535,1737963040756,-14590.06481448,0.000108,2]
[350559536,1737963040768,-544.18457339,0.000108,2]
[350559537,1737963040779,-648.49788305,0.000108,2]
[350559538,1737963040791,-1378.501495,0.000108,2]
[350559539,1737963040803,-1248.203313,0.000108,2]
[350559540,1737963040815,-7114.59351263,0.000108,2]
[350559541,1737963040824,-173.0,0.00010999,2]
[350559542,1737963040834,-251.4,0.00011079,2]
[350559543,1737963040847,-519.10342898,0.00011099,2]
[350559544,1737963040858,-519.10342892,0.00011099,2]
[350559545,1737963040867,-250.0,0.00011115,2]
[350559546,1737963040877,-519.10342892,0.00011184,2]
[350559547,1737963040886,-250.0,0.00011242,2]
[350559548,1737963040896,-519.10342892,0.00011286,2]
[350559549,1737963040905,-638.0,0.0001138,2]
[350559550,1737963040917,-150.0,0.0001138,2]
[350559551,1737963040928,-519.10342892,0.00011388,2]
[350559552,1737963040938,-519.10342892,0.00011491,2]
[350559553,1737963040948,-519.10342892,0.00011593,2]
[350559554,1737963040960,-10797.71996137,0.000116,2]
[350559555,1737963040971,-165.25,0.00011671,2]
[350559556,1737963040981,-23900.0,0.00011686,2]
[350559557,1737963040991,-519.10342892,0.00011695,2]
[350559558,1737963041001,-165.25,0.00011729,2]
[350559559,1737963041011,-519.10342892,0.00011798,2]
[350559560,1737963041020,-233.83,0.00011828,2]
[350559561,1737963041030,-233.83,0.00011844,2]
[350559562,1737963041041,-233.83,0.00011883,2]
[350559563,1737963041050,-175.82715538,0.00011899,2]
[350559564,1737963041060,-2500.0,0.000119,2]
[350559565,1737963041070,-10000.0,0.000119,2]
[350559566,1737963041080,-411.91887296,0.000119,2]
[350559568,1737963041093,-519.10342892,0.000119,2]
[350559569,1737963041103,-233.83,0.00011905,2]
[350559571,1737963041113,-233.83,0.00011918,2]
[350559574,1737963041123,-250.0,0.00011953,2]
[350559576,1737963041134,-500.0,0.00011973,2]
[350559577,1737963041143,-500.0,0.00011996,2]
[350559579,1737963041153,-500.0,0.00011996,2]
[350559581,1737963041163,-500.0,0.00011997,2]
[350559583,1737963041173,-500.0,0.00011997,2]
[350559585,1737963041182,-500.0,0.00011997,2]
[350559587,1737963041196,-500.0,0.00011997,2]
[350559590,1737963041206,-500.0,0.00011997,2]
[350559592,1737963041216,-500.0,0.00011997,2]
[350559593,1737963041226,-500.0,0.00011997,2]
[350559596,1737963041236,-503.59215037,0.00011997,2]
[350559598,1737963041246,-500.0,0.00011997,2]
[350559600,1737963041256,-500.0,0.00011997,2]
[350559601,1737963041266,-28193.26405799,0.00011998,2]
[350559604,1737963041278,-552.81893009,0.00011998,2]
[350559606,1737963041290,-3130.59417861,0.00011998,2]
[350559608,1737963041302,-787.36,0.00011998,2]
[350559612,1737963041327,-2295.0,0.00011998,2]
[350559614,1737963041343,-3857.0189664,0.00011998,2]
[350559616,1737963041354,-9532.16317806,0.00011998,2]
[350559618,1737963041366,-511.90603702,0.00011998,2]
[350559620,1737963041378,-468.40396298,0.00011998,2]
[350559689,1737963042154,-3687.7752009,0.00011998,2]
[350559693,1737963042186,-1303.4180016,0.00011998,2]
[350559695,1737963042198,-3243.033,0.00011998,2]
[350559697,1737963042211,-777.3478708,0.00011998,2]
[350559699,1737963042222,-931.99999,0.00011998,2]
[350559702,1737963042242,-324.32399997,0.00011998,2]
[350559705,1737963042253,-1480.74,0.00011998,2]
[350559707,1737963042265,-18884.71271618,0.00011998,2]
[350559709,1737963042276,-594.53376098,0.00011998,2]
[350559711,1737963042288,-9850.1,0.00011998,2]
[350559713,1737963042299,-30512.19999958,0.00011998,2]
[350559716,1737963042321,-1963.4,0.00011998,2]
[350559719,1737963042332,-3082.37000004,0.00011998,2]
[350559721,1737963042347,-6206.20080001,0.00011998,2]
[350559723,1737963042359,-13346.77716841,0.00011998,2]
[350559725,1737963042369,-500.0,0.00011998,2]
[350559727,1737963042378,-1468.52283164,0.00011999,2]
[350559729,1737963042390,-6790.50593122,0.00011999,2]
[350559731,1737963042400,-275.22372161,0.00011999,2]
[350559733,1737963042410,-791.34101696,0.00011999,2]
[350559735,1737963042419,-500.0,0.00011999,2]
[350559737,1737963042429,-500.0,0.00011999,2]
[350559739,1737963042439,-500.0,0.00011999,2]
[350559741,1737963042448,-500.0,0.00011999,2]
[350559743,1737963042458,-500.0,0.00011999,2]
[350559745,1737963042468,-500.0,0.00011999,2]
[350559747,1737963042478,-500.0,0.00011999,2]
[350559749,1737963042489,-459.47760933,0.00011999,2]
[350559751,1737963042499,-500.0,0.00011999,2]
[350559753,1737963042510,-500.0,0.00011999,2]
[350559755,1737963042519,-500.0,0.00011999,2]
[350559757,1737963042529,-500.0,0.00011999,2]
[350559759,1737963042539,-500.0,0.00011999,2]
[350559761,1737963042549,-500.0,0.00011999,2]
[350559763,1737963042559,-303.41548238,0.00011999,2]
[350559793,1737963042796,-196.58451762,0.00011999,2]
[350559795,1737963042808,-222.27292699,0.00011999,2]
[350559797,1737963042818,-464.93561503,0.00011999,2]
[350559799,1737963042831,-35.06438497,0.00011999,2]
[350559801,1737963042847,-500.0,0.00011999,2]
[350559803,1737963042858,-134.07321852,0.00011999,2]
[350559805,1737963042872,-365.92678148,0.00011999,2]
[350559807,1737963042882,-329.41833279,0.00011999,2]
[350559809,1737963042896,-170.58166721,0.00011999,2]
[350559811,1737963042907,-500.0,0.00011999,2]
[350559813,1737963042923,-500.0,0.00011999,2]
[350559816,1737963042934,-500.0,0.00011999,2]
[350559818,1737963042945,-46.66741989,0.00011999,2]
[350559826,1737963043032,-500.0,0.00011997,2]
[350559828,1737963043043,-453.33258011,0.00011999,2]
[350559830,1737963043054,-500.0,0.00011999,2]
[350559832,1737963043065,-500.0,0.00011999,2]
[350559834,1737963043076,-500.0,0.00011999,2]
[350559836,1737963043091,-500.0,0.00011999,2]
[350559838,1737963043103,-500.0,0.00011999,2]
[350559840,1737963043114,-500.0,0.00011999,2]
[350559842,1737963043124,-500.0,0.00011999,2]
[350559844,1737963043135,-212.73824106,0.00011999,2]
[350559846,1737963043145,-500.0,0.00011999,2]
[350559849,1737963043155,-500.0,0.00011999,2]
[350559854,1737963043166,-192.66488356,0.00011999,2]
[350559856,1737963043175,-500.0,0.00011999,2]